[Event "Indian Rapid Championship 2023-24"]
[Site "Nashik"]
[Date "2024.03.05"]
[Round "7.4"]
[White "Ghosh, Diptayan"]
[Black "Ravi, Teja S."]
[Result "1-0"]
[ECO "A11"]
[WhiteElo "2559"]
[BlackElo "2437"]
[Annotator "TA"]
[PlyCount "159"]
[EventDate "2024.03.02"]
[EventType "swiss"]
[EventCountry "IND"]
[SourceTitle "playchess.com"]
[Source "ChessBase"]
[SourceQuality "1"]
[TimeControl "900+10"]

{[%evp 77,159,314,337,340,335,341,336,319,379,372,385,383,382,0,384,390,380,352,329,334,325,316,305,298,368,377,385,393,398,394,486,468,458,414,514,498,769,759,1134,608,541,0,786,505,542,500,704,528,764,360,348,292,265,0,986,986,1175,436,495,479,512,524,525,493,523,544,683,674,635,564,656,614,662,572,655,609,828,804,1031,950,1089,730,696,682]} 1. Nf3 {[%emt 0:00:03]} d5 {[%emt 0:00:02]} 2. e3 {[%emt 0:00:01]} Nf6 {[%emt 0:00:02]} 3. c4 {[%emt 0:00:01]} c6 {[%emt 0:00:05]} 4. Nc3 {[%emt 0:00:02]} Bg4 {[%emt 0:00:08]} 5. cxd5 {[%emt 0:00:04]} Bxf3 {[%emt 0:00:02]} 6. Qxf3 {[%emt 0:00:02]} cxd5 {[%emt 0:00:01]} 7. Bb5+ {[%emt 0:00:02]} Nc6 {[%emt 0:00:02]} 8. Bxc6+ {[%emt 0:00:01]} bxc6 {[%emt 0:00:01]} 9. b3 {[%emt 0:00:03]} e6 {[%emt 0:00:14]} 10. Bb2 {[%emt 0:00:01]} Bd6 {[%emt 0:00:22]} 11. O-O {[%emt 0:00:05]} O-O {[%emt 0:00:04]} 12. Rac1 {[%emt 0:00:02]} Qe7 {[%emt 0:01:46]} 13. Na4 {[%emt 0:00:22]} c5 {[%emt 0:00:14]} 14. Bxf6 {[%emt 0:01:13]} gxf6 {[%emt 0:00:12]} 15. d3 {[%emt 0:00:19]} f5 {[%emt 0:02:37]} 16. Rc2 {[%emt 0:00:10]} Rac8 {[%emt 0:00:12]} 17. Rfc1 {[%emt 0:00:03]} Rc7 {[%emt 0:00:19]} 18. g3 {[%emt 0:00:20]} Rfc8 {[%emt 0:00:26]} 19. e4 {[%emt 0:00:24]} fxe4 {[%emt 0:02:25]} 20. dxe4 {[%emt 0:00:02]} dxe4 {[%emt 0:01:23]} 21. Qxe4 {[%emt 0:00:05]} Qf6 {[%emt 0:00:01]} 22. Kg2 {[%emt 0:01:02]} Bf8 {[%emt 0:00:09]} 23. Rc4 {[%emt 0:00:36]} Kh8 {[%emt 0:00:12]} 24. R1c3 {[%emt 0:00:30]} Qg6 {[%emt 0:02:33]} 25. Qf3 {[%emt 0:00:56]} Bg7 {[%emt 0:00:43]} 26. Rxc5 {[%emt 0:01:47]} Rxc5 {[%emt 0:00:46]} 27. Rxc5 {[%emt 0:00:02]} Rf8 {[%emt 0:01:09]} 28. Rc7 {[%emt 0:00:11]} Bd4 {[%emt 0:00:08]} 29. Nc5 {[%emt 0:00:48]} e5 {[%emt 0:01:13]} 30. Rc6 {[%emt 0:03:35]} e4 {[%emt 0:01:24]} 31. Qxe4 {[%emt 0:00:13]} Qxe4+ {[%emt 0:00:02]} 32. Nxe4 {[%emt 0:00:01]} Bb6 {[%emt 0:00:35]} 33. Kf3 {[%emt 0:00:32]} Kg7 {[%emt 0:00:05]} 34. Nd6 {[%emt 0:00:13]} Rd8 {[%emt 0:00:16]} 35. Nf5+ {[%emt 0:00:41]} Kf8 {[%emt 0:00:04]} 36. Rc2 {[%emt 0:00:20]} f6 {[%emt 0:00:14]} 37. Ne3 {[%emt 0:00:22]} Rd3 {[%emt 0:00:29]} 38. Ke2 {[%emt 0:00:04]} Rd7 {[%emt 0:00:10]} 39. Nc4 {[%emt 0:00:24]} Bc7 {[%emt 0:00:07]} 40. Rd2 {[%emt 0:00:03]} Re7+ {[%emt 0:00:01]} 41. Kf3 {[%emt 0:00:01]} Kf7 {[%emt 0:00:07]} 42. Rd5 {[%emt 0:00:03]} Kg6 {[%emt 0:00:05]} 43. h4 {[%emt 0:00:08]} h5 {[%emt 0:00:12]} 44. Ne3 {[%emt 0:00:02]} Be5 {[%emt 0:00:03]} 45. Nc4 {[%emt 0:00:24]} Bc7 $1 {[%emt 0:00:02]} 46. Rc5 {[%emt 0:00:06]} Rd7 {[%emt 0:00:11]} 47. Ne3 {[%emt 0:00:26]} Bb6 {[%emt 0:00:38]} 48. Rd5 {[%emt 0:00:04]} Rc7 {[%emt 0:00:03]} 49. Nc4 {[%emt 0:00:16]} Bc5 {[%emt 0:00:07]} 50. Kg2 {[%emt 0:01:04]} Rc6 {[%emt 0:00:15]} 51. f3 {[%emt 0:00:15]} Bb4 {[%emt 0:00:18]} 52. g4 {[%emt 0:00:02]} hxg4 {[%emt 0:00:01]} 53. fxg4 {[%emt 0:00:01]} Ra6 {[%emt 0:00:12]} 54. a4 {[%emt 0:00:08]} Re6 {[%emt 0:00:02]} 55. Kf3 {[%emt 0:00:03]} Re1 {[%emt 0:00:07]} 56. h5+ {[%emt 0:00:02]} Kh6 {[%emt 0:00:11]} (56... Kf7 $142 57. Rb5 (57. Rd7+ Re7 $18) 57... Bf8 58. Rb7+ Ke6 59. Rxa7 Rf1+ 60. Kg2 Rb1 61. Ra6+ Kf7) 57. Ne3 $18 {[%emt 0:00:05]} Rb1 {[%emt 0:00:06]} 58. Nf5+ {[%emt 0:00:02]} Kg5 {[%emt 0:00:05]} 59. Ne3+ {[%emt 0:00:59]} Kh6 {[%emt 0:00:04]} 60. Rd3 {[%emt 0:00:04]} Kg5 {[%emt 0:00:15]} 61. Ke4 {[%emt 0:00:36]} a5 {[%emt 0:00:12]} 62. Kf3 {[%emt 0:00:20]} Kh6 {[%emt 0:00:37]} 63. Nd5 {[%emt 0:00:08]} (63. Rd7 $142 {Threatening mate with Nf5+.} f5 64. Kf4 (64. Nxf5+ Kg5 $18) (64. gxf5 Ba3 $18) 64... fxg4 65. Kf5 (65. Nxg4+ Kxh5 66. Rh7+ Kg6 $11) (65. Kxg4 Rg1+ 66. Kf4 Kxh5 $16)) 63... Ba3 $18 {[%emt 0:00:07]} 64. Ke4 {[%emt 0:00:17]} ({Worse is} 64. Nxf6 Rf1+ 65. Kg3 Rxf6 $11) 64... Kg5 {[%emt 0:00:10]} 65. Ne3 $2 {[%emt 0:00:02]} (65. Rf3 Re1+ 66. Re3 (66. Ne3 Bc1 $18)) 65... Bb4 $1 $18 {[%emt 0:00:05]} 66. Rd5+ {[%emt 0:00:05]} Kh6 {[%emt 0:00:03]} 67. Rf5 {[%emt 0:00:44]} (67. Rd7 $142 {White wants to mate with Nf5+.} Kg5 68. Rg7+ Kh4 69. h6) 67... Kg7 $18 {[%emt 0:00:34]} 68. Nd5 {[%emt 0:00:07]} Re1+ {[%emt 0:00:20]} 69. Kd3 {[%emt 0:00:04]} Rd1+ {[%emt 0:00:10]} 70. Kc4 {[%emt 0:00:31]} Rc1+ {[%emt 0:00:01]} 71. Kb5 {[%emt 0:00:05]} Rc5+ {[%emt 0:00:02]} 72. Kb6 {[%emt 0:00:05]} Ba3 {[%emt 0:00:02]} 73. Nc7 {[%emt 0:01:28]} Rc3 {[%emt 0:00:17]} 74. Ne8+ {[%emt 0:00:10]} Kf7 {[%emt 0:00:10]} 75. Nxf6 {[%emt 0:00:09]} Rxb3+ {[%emt 0:00:07]} 76. Kxa5 {[%emt 0:00:06]} Kg7 {[%emt 0:00:18]} 77. Nd5 {[%emt 0:00:10]} Rh3 {[%emt 0:00:14]} 78. Ka6 {[%emt 0:00:10]} Rh4 {[%emt 0:00:05]} 79. Rf4 {[%emt 0:00:08]} Bd6 {[%emt 0:00:05]} 80. Re4 {[%emt 0:00:01]} 1-0

[Event "Indian Rapid Championship 2023-24"]
[Site "Nashik"]
[Date "2024.03.05"]
[Round "7.5"]
[White "Prraneeth Vuppala"]
[Black "Srihari L"]
[Result "1-0"]
[ECO "E70"]
[WhiteElo "2506"]
[BlackElo "2400"]
[Annotator "TA"]
[PlyCount "85"]
[EventDate "2024.03.02"]
[EventType "swiss"]
[EventCountry "IND"]
[SourceTitle "playchess.com"]
[Source "ChessBase"]
[SourceQuality "1"]
[TimeControl "900+10"]

{[%evp 46,84,102,-20,0,0,56,0,89,0,0,0,0,-35,-8,-3,-6,-246,28,0,39,0,62,0,76,-25,943,-442,-192,-1106,-525,-1057,-159,-158,-175,-182,-181,-156,270,260,29999]} 1. d4 {[%emt 0:00:01]} Nf6 {[%emt 0:00:04]} 2. c4 {[%emt 0:00:02]} g6 {[%emt 0:00:16]} 3. Nc3 {[%emt 0:00:03]} Bg7 {[%emt 0:00:01]} 4. e4 {[%emt 0:00:01]} d6 {[%emt 0:00:01]} 5. Nge2 {[%emt 0:00:10]} Nc6 {[%emt 0:00:13]} 6. d5 {[%emt 0:00:20]} Ne5 {[%emt 0:00:05]} 7. Ng3 {[%emt 0:01:13]} c6 {[%emt 0:00:03]} 8. Be2 {[%emt 0:00:19]} h5 {[%emt 0:00:40]} 9. f4 {[%emt 0:00:53]} Ned7 {[%emt 0:00:56]} 10. Be3 {[%emt 0:00:05]} h4 {[%emt 0:01:36]} 11. Nf1 {[%emt 0:00:09]} h3 {[%emt 0:00:05]} 12. g3 {[%emt 0:01:00]} cxd5 {[%emt 0:02:22]} 13. cxd5 {[%emt 0:00:26]} O-O {[%emt 0:00:20]} 14. Nd2 {[%emt 0:00:33]} Nb6 {[%emt 0:01:11]} 15. a4 {[%emt 0:01:16]} a5 {[%emt 0:00:19]} 16. O-O {[%emt 0:00:28]} Re8 {[%emt 0:03:26]} 17. Qb3 {[%emt 0:01:43]} Nfd7 {[%emt 0:00:22]} 18. Nc4 {[%emt 0:00:37]} Nxc4 {[%emt 0:00:25]} 19. Bxc4 {[%emt 0:00:03]} Nf6 {[%emt 0:00:23]} 20. Bb6 {[%emt 0:01:05]} Qd7 {[%emt 0:00:03]} 21. f5 {[%emt 0:01:22]} Ra6 {[%emt 0:00:40]} 22. Bxa6 {[%emt 0:02:23]} bxa6 {[%emt 0:00:02]} 23. Qc4 {[%emt 0:00:45]} Ng4 {[%emt 0:00:39]} 24. Qe2 {[%emt 0:00:48]} (24. Bxa5 $2 Qa7+ 25. Kh1 Nf2+ 26. Rxf2 Qxf2 $19) (24. fxg6 $16 fxg6 25. Bd4 (25. Bxa5 $2 Qa7+ 26. Kh1 Nf2+ 27. Kg1 Nd3+ 28. Kh1 Qe3 $19)) 24... Qb7 $1 $11 {[%emt 0:01:00]} 25. Bxa5 {[%emt 0:00:51]} (25. Qxg4 Qxb6+ 26. Rf2 (26. Kh1 $2 Qxb2 27. Ne2 Qb4 $17) 26... Bd4 $17) 25... Ne5 {[%emt 0:00:01]} (25... gxf5 $1 $11 26. exf5 Bd4+ 27. Kh1 Ne3) 26. Rac1 {[%emt 0:00:15]} (26. fxg6 $14 fxg6 27. Nd1) 26... Qb3 {[%emt 0:00:21]} (26... Bh6 $11 {keeps the balance.}) 27. Kh1 {[%emt 0:01:27]} (27. Nd1 $1 $16) 27... gxf5 $11 {[%emt 0:01:49]} 28. exf5 {[%emt 0:00:14]} Bb7 {[%emt 0:00:01]} 29. Qd1 {[%emt 0:01:11]} Qxb2 {[%emt 0:00:50]} (29... Qxd1 {simplifies} 30. Rfxd1 e6 31. Ne4 Bxd5 32. Rxd5 exd5 33. Nxd6 Rb8) 30. Rc2 $1 {[%emt 0:00:01]} Qb3 {[%emt 0:01:15]} 31. Rd2 $2 {[%emt 0:00:23]} (31. Re2 $1 $11 {and White has nothing to worry.} Qxd1 32. Rxd1) 31... Qc4 $2 {[%emt 0:00:13]} ({Black should try} 31... Qxd1 $1 $19 32. Rdxd1 Nc4) 32. Rf4 {[%emt 0:00:06]} Qc8 {[%emt 0:00:17]} (32... Qc5 $5 33. Bb4 $8 Qe3 $11) 33. Qf1 {[%emt 0:00:09]} Nd7 {[%emt 0:00:24]} ({Better is} 33... e6 $11 34. fxe6 (34. Qxh3 exd5 35. Qg2 Nc4 $19) 34... Rxe6) 34. Ne4 {[%emt 0:00:09]} (34. Rc4 $14 Qa8 35. Qxh3) 34... Nc5 {[%emt 0:00:11] [#]} (34... Nf6 $11 {remains equal.} 35. Nxf6+ (35. Qxh3 $2 Nxd5 36. Rxd5 Bxd5 $19) 35... exf6) 35. Ng5 {[%emt 0:00:15]} (35. Qxh3 Nxe4 (35... Nb3 $2 36. Ng5 $18) 36. Rxe4 Qc1+ 37. Kg2 Bxd5 $15) (35. Bb6 $1 $16 {[%cal Rb6c5] Bxc5 is the strong threat.} Bxd5 (35... Nxe4 36. Rxe4 Bxd5 37. Rxd5 $16) 36. Rxd5 Nxe4 37. Rxe4) 35... Nb3 $2 {[%emt 0:00:08][%mdl 8192] [#]} (35... f6 $11 36. Nxh3 Nb3) 36. Rc4 $4 {[%emt 0:00:04][%mdl 8192]} (36. Qxh3 $1 $18 {Intending Qh7+ and mate.} Nxd2 37. Qh7+ Kf8 38. Ne6+ (38. Bxd2 $2 Bxd5+ 39. Ne4 Rd8 $17) 38... Qxe6 39. fxe6 Bxd5+ 40. Kg1 Bxe6 41. Bxd2) 36... Qa8 {[%emt 0:00:08]} (36... Nxd2 $142 37. Rxc8 Bxd5+ (37... Nxf1 $2 38. Rxe8+ Bf8 39. f6 $18) 38. Kg1 (38. Nf3 $2 Rxc8 39. Kg1 Nxf1 $19) 38... Bd4+ (38... Nxf1 $2 39. Rxe8+ Bf8 40. Kxf1 $18) (38... Rxc8 39. Qd3 $16) 39. Qf2 Bxf2+ 40. Kxf2 Rxc8 41. Bxd2 Bg2 (41... Rc2 $2 42. Ke2 $19)) 37. Qxh3 $2 {[%emt 0:00:16]} (37. Rg4 Bxd5+ (37... Nxa5 38. Qxh3 Bxd5+ 39. Kg1 $17) 38. Kg1 Nxd2 (38... Nxa5 39. Qxh3 Rc8 40. f6 $15) 39. Bxd2) 37... Bxd5+ {[%emt 0:00:10]} (37... Nxa5 38. Qh7+ Kf8 39. Rcd4 $11) (37... Nxd2 $142 38. Bxd2 Bxd5+ 39. Ne4 Bxc4 (39... Bxe4+ $2 40. Rxe4 Qxe4+ 41. Qg2 $19)) 38. Kg1 {[%emt 0:00:03]} Qa7+ $2 {[%emt 0:00:08]} (38... Nxa5 39. Qh7+ Kf8 40. Ne6+ fxe6 (40... Bxe6 $2 41. Rg4 $18) 41. Rf4 Qa7+ 42. Rdf2 $11) (38... Nxd2 $19 {has better winning chances.} 39. Qh7+ Kf8 40. Qxg7+ Kxg7 41. Bc3+ f6 (41... Kg8 $2 42. Rg4 $19)) 39. Rf2 $17 {[%emt 0:00:01]} Bxc4 {[%emt 0:00:05]} 40. Qh7+ {[%emt 0:00:02]} Kf8 {[%emt 0:00:01]} 41. Ne6+ {[%emt 0:00:01]} Bxe6 $2 {[%emt 0:00:20]} (41... fxe6 $17 {stays on course.} 42. fxe6+ Qxf2+ 43. Kxf2 Bxe6 (43... Nxa5 44. Qg6 $15)) 42. fxe6 $18 {[%emt 0:00:01]} Nd4 $2 {[%emt 0:00:23]} ({Don't play} 42... Nxa5 43. exf7 $18) (42... Qxf2+ $18 43. Kxf2 fxe6 (43... Nxa5 $2 {is the wrong capture.} 44. exf7 Kxf7 45. Qh5+ Kf8 46. Qxa5 $18)) 43. Rxf7# {[%emt 0:00:04]} 1-0

[Event "Indian Rapid Championship 2023-24"]
[Site "Nashik"]
[Date "2024.03.05"]
[Round "7.6"]
[White "Priyanka Nutakki"]
[Black "Sriram, Jha"]
[Result "1/2-1/2"]
[ECO "A06"]
[WhiteElo "2272"]
[BlackElo "2312"]
[Annotator "TA"]
[PlyCount "72"]
[EventDate "2024.03.02"]
[EventType "swiss"]
[EventCountry "IND"]
[SourceTitle "playchess.com"]
[Source "ChessBase"]
[SourceQuality "1"]
[TimeControl "900+10"]

{[%evp 9,72,13,18,-6,-8,-15,-12,0,-8,-11,-8,-28,-19,-28,-24,-22,0,-62,3,-39,-31,-42,-26,-36,-18,-11,-9,-38,0,0,0,-126,-118,-131,-29,-33,0,0,0,0,0,-189,-192,-242,-206,-201,-181,-168,-168,-184,-144,-113,-61,-139,-186,-162,0,0,0,-8,0,0,0,0,0]} 1. Nf3 {[%emt 0:00:02]} c5 {[%emt 0:00:30]} 2. b3 {[%emt 0:00:08]} Nc6 {[%emt 0:00:21]} 3. Bb2 {[%emt 0:00:02]} d5 {[%emt 0:00:31]} 4. e3 {[%emt 0:00:02]} Nf6 {[%emt 0:00:29]} 5. Bb5 {[%emt 0:00:04]} Qb6 {[%emt 0:00:40]} 6. Bxc6+ {[%emt 0:01:05]} Qxc6 {[%emt 0:00:01]} 7. Ne5 {[%emt 0:00:04]} Qc7 {[%emt 0:00:07]} 8. O-O {[%emt 0:00:29]} g6 {[%emt 0:01:22]} 9. f4 {[%emt 0:01:54]} Bg7 {[%emt 0:00:03]} 10. Qf3 {[%emt 0:00:08]} O-O {[%emt 0:00:14]} 11. d3 {[%emt 0:00:19] [#]} Ng4 $1 {[%emt 0:01:38]} 12. Qg3 {[%emt 0:02:28]} Nxe5 {[%emt 0:00:51]} 13. fxe5 {[%emt 0:00:22]} ({White should try} 13. Bxe5 $11 Bxe5 14. fxe5) 13... f6 {[%emt 0:03:18]} ({Black should play} 13... Bf5 $15) 14. Nd2 {[%emt 0:00:05]} Be6 {[%emt 0:00:38]} (14... fxe5 $6 15. Rxf8+ Bxf8 16. Bxe5 $14) 15. Nf3 {[%emt 0:00:30]} Rac8 {[%emt 0:00:16]} 16. c4 {[%emt 0:01:38]} Qd7 {[%emt 0:00:12]} 17. Rad1 {[%emt 0:00:21]} Rcd8 {[%emt 0:00:21]} 18. d4 {[%emt 0:02:45]} dxc4 {[%emt 0:01:29]} 19. d5 $1 {[%emt 0:00:03]} cxb3 {[%emt 0:00:21]} (19... Bxd5 $2 20. bxc4 Qe6 21. cxd5 (21. Rxd5 Rxd5 22. cxd5 Qxd5 $18) 21... Rxd5 22. Rxd5 Qxd5 23. Qe1 $18) 20. axb3 {[%emt 0:00:40] [#]} (20. exf6 $11 Bxf6 21. Ne5) 20... Bf5 $1 $17 {[%emt 0:00:22]} (20... Bxd5 21. e4 $16) 21. Rd2 {[%emt 0:03:20]} Qb5 {[%emt 0:00:51]} (21... Be4 $17 22. Qh4 Bxf3 (22... Bxd5 $2 23. e4 $18)) 22. d6 $11 {[%emt 0:01:01]} exd6 {[%emt 0:00:16]} (22... Qxb3 $2 23. dxe7 Rxd2 24. exf8=Q+ Bxf8 (24... Kxf8 $2 25. Nxd2 Qxb2 26. Nc4 $18) 25. Nxd2 $16) 23. exf6 {[%emt 0:00:02]} Bxf6 {[%emt 0:00:32]} 24. Bxf6 {[%emt 0:00:36]} Rxf6 {[%emt 0:00:00]} 25. Qh4 $2 {[%emt 0:00:05]} (25. Rdf2 $1 $11 {and White is okay.} Rff8 (25... Qxb3 26. Nh4 $14) 26. Nh4) 25... Rdf8 $1 $19 {[%emt 0:00:27]} 26. e4 {[%emt 0:00:40]} (26. Rdf2 {is a better defense.} Kg7 (26... Qxb3 27. e4 $16) 27. e4) 26... Bd7 {[%emt 0:01:05]} 27. Rdf2 {[%emt 0:00:31]} h5 {[%emt 0:01:01]} (27... Qxb3 $2 28. Ng5 h5 29. Rxf6 Qe3+ 30. Qf2 Qxf2+ 31. R1xf2 Rxf6 32. Rxf6 $18) 28. Qg5 {[%emt 0:00:10] Strongly threatening Nd2.} Kg7 {[%emt 0:00:29][%cal Oc5c4]} ({Inferior is} 28... Qxb3 29. e5 dxe5 30. Nxe5 (30. Nd2 Rxf2 31. Qxg6+ Kh8 $16) 30... Rxf2 31. Qxg6+ Kh8 32. Qh6+ Kg8 33. Qg6+ Kh8 34. Qxh5+ Kg8 35. Qg6+ Kh8 36. Qh5+ Kg8 37. Qg6+ Kh8 38. Qh6+ Kg8 39. Qg5+ Kh7 40. Qh5+ Kg7 41. Qg6+ Kh8 $11) 29. h3 {[%emt 0:00:11]} c4 {[%emt 0:00:32] Threatens to win with ...Qxg5.} ({Weaker is} 29... Qxb3 30. Nh4 Qe6 31. Nf5+ Rxf5 32. Rxf5 Rxf5 33. exf5 $15) 30. e5 {[%emt 0:00:08]} Rf5 {[%emt 0:00:08]} (30... dxe5 $17 31. Nxe5 Qc5) 31. Qe7+ {[%emt 0:00:08]} ({Better is} 31. bxc4 $1 $15 Qxc4 32. Qe7+ Qf7 33. Qxd6) 31... R8f7 $17 {[%emt 0:00:12]} 32. Qxd6 {[%emt 0:00:02] Nd4 is the strong threat.} Qb6 {[%emt 0:00:43]} ({Stronger than} 32... Qxb3 33. e6 Bxe6 34. Qxe6 $18) (32... cxb3 $19 {And now ...Qc4 would win.} 33. e6 Rd5) 33. Qxb6 {[%emt 0:00:23] The position is equal.} axb6 {[%emt 0:00:01]} 34. bxc4 {[%emt 0:00:00]} Bc6 {[%emt 0:00:16]} 35. Nd4 {[%emt 0:00:13]} Rxf2 {[%emt 0:00:01]} 36. Rxf2 {[%emt 0:00:00]} Re7 {[%emt 0:00:15] Weighted Error Value: White=0.24 (precise) /Black=0.25 (precise) .  Loses game:     	White=1     	---        Missed win:     	---       	Black=1      Mistake:       	White=4     	Black=3      Inaccurate:     	White=2     	Black=2      OK:         	White=11    	Black=5      Best:        	White=2     	Black=1      Strong:       	White=1     	Black=2} 1/2-1/2

[Event "Indian Rapid Championship 2023-24"]
[Site "Nashik"]
[Date "2024.03.05"]
[Round "7.7"]
[White "Kushagra Mohan"]
[Black "Nitin, S.."]
[Result "1-0"]
[ECO "B08"]
[WhiteElo "2351"]
[BlackElo "2338"]
[Annotator "TA"]
[PlyCount "103"]
[EventDate "2024.03.02"]
[EventType "swiss"]
[EventCountry "IND"]
[SourceTitle "playchess.com"]
[Source "ChessBase"]
[SourceQuality "1"]
[TimeControl "900+10"]

{[%evp 20,103,28,24,26,27,20,0,0,0,0,0,118,131,117,127,287,285,283,269,301,281,222,164,170,154,300,341,716,723,860,856,860,857,918,899,781,771,2021,470,435,452,425,316,323,289,931,899,845,785,662,599,669,643,654,647,881,855,800,458,1802,1642,1798,1292,1209,1202,1120,1048,1186,716,744,754,718,718,1402,962,1648,782,1537,1471,967,518,6929,6890,29977,29978]} 1. e4 {[%emt 0:00:02]} g6 {[%emt 0:00:13]} 2. d4 {[%emt 0:00:02]} Bg7 {[%emt 0:00:01]} 3. Nf3 {[%emt 0:00:01]} c6 {[%emt 0:00:04]} 4. h3 {[%emt 0:00:09]} d6 {[%emt 0:00:11]} 5. a4 {[%emt 0:00:16]} Nf6 {[%emt 0:00:07]} 6. Nc3 {[%emt 0:00:01]} O-O {[%emt 0:00:03]} 7. Be2 {[%emt 0:00:01]} Qc7 {[%emt 0:00:02]} 8. O-O {[%emt 0:00:08]} e5 {[%emt 0:00:01]} 9. dxe5 {[%emt 0:00:26]} dxe5 {[%emt 0:00:02]} 10. Be3 {[%emt 0:00:02]} Nh5 {[%emt 0:00:43]} 11. Bc4 {[%emt 0:01:48] B08: Pirc Defence: Classical System.} Nf4 {[%emt 0:01:10]} 12. Qb1 {[%emt 0:00:28]} Qe7 {[%emt 0:01:34]} 13. Bxf4 $146 {[%emt 0:02:10]} ({Predecessor:} 13. Kh2 Qf6 14. Ng1 h5 15. b4 Nd7 16. a5 Re8 17. b5 Bf8 18. a6 Nc5 19. Qa2 {0-1 Jurcik,M (2473)-Matlakov,M (2707) EU-ch 19th Batumi 2018 (5)}) 13... exf4 {[%emt 0:00:02]} 14. Qc1 {[%emt 0:00:03]} Qb4 {[%emt 0:00:44]} 15. Bb3 {[%emt 0:00:39]} Bxc3 {[%emt 0:03:09]} (15... Nd7 $11 {keeps the balance.}) 16. bxc3 $16 {[%emt 0:00:05]} Qxe4 {[%emt 0:00:02]} 17. a5 {[%emt 0:02:52]} Qf5 $2 {[%emt 0:01:01] [#]} (17... Na6 $16 18. Re1 Qf5) 18. Ra4 $1 $18 {[%emt 0:00:08]} g5 {[%emt 0:00:31]} 19. Re1 {[%emt 0:01:01]} Nd7 {[%emt 0:00:03]} 20. h4 {[%emt 0:00:07]} h6 {[%emt 0:00:20]} 21. hxg5 {[%emt 0:00:04]} hxg5 {[%emt 0:00:02]} 22. Qd2 {[%emt 0:00:58]} Qf6 {[%emt 0:02:54]} (22... Qg6 $16 {was called for.}) 23. Rd4 $18 {[%emt 0:00:13]} Nc5 $2 {[%emt 0:00:31]} (23... Qg7 24. Rxd7 Bxd7) 24. Re5 $18 {[%emt 0:00:17]} Nxb3 {[%emt 0:00:09]} 25. cxb3 {[%emt 0:00:03]} Bf5 {[%emt 0:01:03]} 26. Rd6 {[%emt 0:00:05]} Be6 {[%emt 0:00:13]} 27. Rxg5+ {[%emt 0:00:49]} Kh7 {[%emt 0:00:06]} 28. Rg4 {[%emt 0:01:01]} Rad8 {[%emt 0:00:35]} 29. Rxf4 {[%emt 0:00:17]} (29. Qxf4 $2 Qxf4 (29... Qxc3 30. Qh2#) 30. Rxf4 Rxd6 $19) (29. Qd3+ $142 Kh6 30. Nd4 (30. Rh4+ Qxh4 31. Nxh4 Rxd6 $18) 30... Bxg4 31. Rxf6+ Kg7 32. Rxf4) 29... Rxd6 $18 {[%emt 0:00:45]} 30. Qxd6 {[%emt 0:00:01]} (30. Rxf6 Rxd2 31. Nxd2 Rd8 $11) 30... Rd8 {[%emt 0:00:03]} 31. Qc7 {[%emt 0:00:52]} Rd1+ {[%emt 0:00:08]} 32. Kh2 {[%emt 0:00:02]} Qg6 $2 {[%emt 0:02:17]} (32... Rd7 33. Rxf6 Rxc7 34. Ng5+ Kg8 35. Nxe6 fxe6 36. Rxe6 Rh7+ 37. Kg3 Rd7) 33. Qe5 {[%emt 0:02:26]} Kg8 {[%emt 0:00:44]} 34. Rh4 {[%emt 0:00:07]} Kf8 {[%emt 0:00:00]} 35. Qb8+ {[%emt 0:00:33]} Ke7 {[%emt 0:00:03]} 36. Qxb7+ {[%emt 0:00:01]} Bd7 {[%emt 0:00:11]} 37. Qxa7 {[%emt 0:01:02]} Qd6+ {[%emt 0:00:11]} 38. g3 {[%emt 0:00:01]} c5 {[%emt 0:00:17]} 39. b4 {[%emt 0:00:59]} Rd3 {[%emt 0:00:44]} (39... Qc6 $142 40. Rf4 (40. Qxc5+ Qxc5 41. Re4+ Kf8 $18) 40... Rd5 41. Re4+ Kf8 42. Qb8+ Qc8) 40. Re4+ $18 {[%emt 0:00:05]} Kf8 {[%emt 0:00:05]} 41. bxc5 {[%emt 0:00:01]} (41. Qxc5 Qxc5 42. bxc5 Rxf3 $19) 41... Qh6+ {[%emt 0:00:38]} 42. Rh4 {[%emt 0:00:02]} Qf6 {[%emt 0:00:05]} 43. Qb8+ {[%emt 0:00:05]} Ke7 {[%emt 0:00:20]} 44. Qe5+ {[%emt 0:00:52]} Be6 {[%emt 0:00:03]} 45. Qxf6+ {[%emt 0:00:33]} Kxf6 {[%emt 0:00:02]} 46. Nd4 {[%emt 0:00:02]} Bd5 {[%emt 0:00:08]} 47. Rh5 {[%emt 0:00:03]} Be4 {[%emt 0:00:09]} 48. f3 {[%emt 0:00:02]} Ba8 {[%emt 0:00:20]} 49. Rh6+ {[%emt 0:00:12]} Ke7 {[%emt 0:00:11]} 50. Ra6 {[%emt 0:00:05]} Bd5 {[%emt 0:00:01]} (50... Bxf3 $142 51. Ra7+ Kf6 52. Nxf3 Rxf3) 51. Rd6 $18 {[%emt 0:00:02]} Bc4 {[%emt 0:00:02]} 52. Nc6+ {[%emt 0:00:12]} 1-0